Cogmind - Beta 13 @@@ ROGUE MODE // 2024.04.12 @ 18:32:08 Player: SPACEGOAT Result: Destroyed by as-97449 with Assembled Blade Performance ------------- Evolutions (0) 0 Regions Visited (4) 800 Robots Destroyed (28) 140 Value Destroyed (436) 436 Prototype IDs (25) 500 Alien Tech Used (0) 0 Bonus (300) 300 TOTAL SCORE: 2176 Bonus ------- Aligned with FarCom 300 Cogmind --------- Core Integrity 0/250 Matter 221/300 Energy 100/100 System Corruption 4% Temperature Cool (0) Movement Core (350) Ox6 Location -9/Mines Parts ------- > --- POWER (1) -------- (None) > --- PROPULSION (2) --- (None) > --- UTILITY (2) ------ Large Storage Unit > --- WEAPON (2) ------- (None) > --- INVENTORY (15) --- Flying Fortress v7 Small Storage Unit High-capacity Battery (250) Medium Matter Pod (100) Visual Processing Unit Signal Interpreter Improved Terrain Scanner Improved Terrain Scanner Terrain Scan Processor Seismic Detector Datajack Peak State ------------ > --- POWER ------------ Light Nuclear Core > --- PROPULSION ------- Light Treads Light Treads > --- UTILITY ---------- Large Storage Unit Structural Scanner > --- WEAPON ----------- Rocket Launcher Datajack > --- INVENTORY -------- Flying Fortress v7 Small Storage Unit High-capacity Battery Medium Matter Pod Visual Processing Unit Signal Interpreter Improved Terrain Scanner Improved Terrain Scanner Terrain Scan Processor Seismic Detector Light Assault Rifle Light Assault Rifle [Rating: 14] Favorites ----------- Power Light Nuclear Core Engine Ion Engine Power Core Light Nuclear Core Propulsion Light Treads Treads Light Treads Utility Large Storage Unit Device Structural Scanner Storage Large Storage Unit Weapon Light Assault Rifle Energy Gun Small Laser Ballistic Gun Light Assault Rifle Launcher Rocket Launcher Special Melee Weapon Datajack Build | -11 -10 -10 -10 -9 ------- Run | Yrd Mat Min Exi Min Slots Evolved . | . . . . . Power . | . . . . . Propulsion . | . . . . . Utility . | . . . . . Weapon . | . . . . . Parts Attached 16 | 7 4 2 1 2 Power 2 | 1 1 . . . Engine 1 | 1 . . . . Core 1 | . 1 . . . Reactor . | . . . . . Propulsion 2 | 2 . . . . Treads 2 | 2 . . . . Leg . | . . . . . Wheel . | . . . . . Hover . | . . . . . Flight . | . . . . . Utility 5 | 2 2 1 . . Device 3 | 1 1 1 . . Storage 2 | 1 1 . . . Processor . | . . . . . Hackware . | . . . . . Protection . | . . . . . Artifact . | . . . . . Weapon 7 | 2 1 1 1 2 Energy Gun 1 | . 1 . . . Energy Cannon . | . . . . . Ballistic Gun 4 | 2 . . . 2 Ballistic Cannon . | . . . . . Launcher 1 | . . 1 . . Special Weapon . | . . . . . Impact Weapon . | . . . . . Slashing Weapon . | . . . . . Piercing Weapon . | . . . . . Special Melee Weapon 1 | . . . 1 . Unidentified Prototypes . | . . . . . Parts Lost 7 | . . . . 7 Power 1 | . . . . 1 Propulsion 2 | . . . . 2 Utility 1 | . . . . 1 Weapon 3 | . . . . 3 Highest Loss Streak 5 | . . . . 5 To Critical Strikes . | . . . . . Average Slot Usage (%) 99 | . 100 100 100 73 Core 12 | . 11 14 14 2 Treads 27 | . 28 28 28 14 Device 14 | . 14 14 14 14 Storage 14 | . 14 14 14 14 Energy Gun 6 | . 6 9 . . Ballistic Gun 14 | . 21 14 . 16 Launcher 5 | . . 4 14 12 Special Melee Weapon 2 | . . . 14 . Naked Turns . | . . . . . Heaviest Build 31 | 13 28 31 31 31 Greatest Support 40 | 40 40 40 40 40 Greatest Overweight (x) 7 | . . . . 7 Average Overweight (x) . | . . . . 1 Largest Inventory Capacity 15 | 8 15 15 15 15 Average Capacity 13 | 7 12 15 15 15 Most Carried 15 | 6 15 15 15 15 Average Carried 13 | 2 11 14 14 14 Final Capacity 15 | 8 15 15 15 15 Final Carried 15 | 6 15 15 15 14 Class Distribution -------------------- 100% | Mutant Dominant Class ---------------- Mutant | -10/Materials Mutant | -10/Mines Mutant | -10/Exiles Mutant | -9/Mines Resources | -11 -10 -10 -10 -9 ----------- Run | Yrd Mat Min Exi Min Matter Collected 551 | 288 245 18 . . Remotely . | . . . . . Salvage Created 788 | 90 624 69 . 5 Parts 56 | 6 38 9 . 3 Haulers Intercepted . | . . . . . Recyclers Shooed 1 | . 1 . . . Parts Field Recycled . | . . . . . Retrieved Matter . | . . . . . Parts Self-Destructed . | . . . . . Prevented . | . . . . . Kills | -11 -10 -10 -10 -9 ------- Run | Yrd Mat Min Exi Min Combat Hostiles Destroyed 17 | . 9 6 . 2 Guns 12 | . 9 3 . . AOE 5 | . . 3 . 2 Classes Destroyed 6 | 2 4 . . . Builder 3 | . 3 . . . Tunneler 3 | 2 1 . . . Recycler 3 | 1 2 . . . Watcher 2 | . 2 . . . Swarmer 11 | . 3 6 . 2 Grunt 6 | . 6 . . . Best Kill Streak 3 | 2 3 3 . 2 Combat Bots Only 3 | . 3 3 . 2 Max Kills in Single Turn 2 | 1 1 2 . 1 Gunslinging . | . . . . . Exploded 2 | . . 2 . 1 Melee . | . . . . . Uniques/NPCs Destroyed . | . . . . . Combat | -11 -10 -10 -10 -9 -------- Run | Yrd Mat Min Exi Min Hostile Shots Fired 117 | . 51 13 . 53 Missed 27 | . 12 3 . 12 Damage Taken 1098 | . 442 85 . 571 Core 263 | . 87 29 . 147 Absorbed by Shields . | . . . . . Core Remaining (%) 100 | 100 . . . . Volleys Fired 80 | 9 56 9 . 6 Largest 2 | 2 2 2 . 2 Hottest 60 | 40 60 60 . 53 Shots Fired 159 | 18 112 18 . 11 Gun 153 | 18 112 16 . 7 Cannon . | . . . . . Launcher 6 | . . 2 . 4 Special . | . . . . . Kinetic 139 | 18 105 9 . 7 Thermal 14 | . 7 7 . . Explosive 6 | . . 2 . 4 Electromagnetic . | . . . . . Robot Hit Streak 14 | 5 14 2 . 1 Robot Miss Streak 7 | 1 3 2 . 7 Penetration Max . | . . . . . Secondary Targets 3 | . 3 . . . Max Gunslinging Chain 1 | . 1 . . . Shots Hit Robots 93 | 13 71 5 2 2 Core Hits 52 | 7 36 6 . 3 Critical Kills 1 | . 1 . . . Critical Parts Destroyed . | . . . . . Critical Strikes 1 | . 1 . . . Destroy 1 | . 1 . . . Melee Attacks 2 | . . . 2 . Impact . | . . . . . Slashing . | . . . . . Piercing . | . . . . . Sneak Attacks 2 | . . . 2 . Combat Hostiles . | . . . . . Follow-up Attacks . | . . . . . Damage Inflicted 971 | 113 575 179 . 104 Guns 744 | 113 575 50 . 6 Cannons . | . . . . . Explosions 227 | . . 129 . 98 Melee . | . . . . . Ramming . | . . . . . Kinetic 660 | 113 534 7 . 6 Thermal 84 | . 41 43 . . Explosive 227 | . . 129 . 98 Electromagnetic . | . . . . . Impact . | . . . . . Slashing . | . . . . . Piercing . | . . . . . Highest Corruption 4 | . . . . 4 Average Corruption 3 | . . . . 3 Corruption Purged . | . . . . . Corruption Blocked . | . . . . . Overload Shots . | . . . . . Overflow Damage 18 | . . . . 18 Projectiles . | . . . . . Explosions 18 | . . . . 18 Melee . | . . . . . Knockbacks . | . . . . . Impact . | . . . . . Kinetic . | . . . . . Secondary . | . . . . . Self-Inflicted Damage 101 | . . . . 101 Shots 3 | . . . . 3 Rammed . | . . . . . Targets Rammed . | . . . . . Kicked . | . . . . . Crushed . | . . . . . Highest Temperature 78 | . 72 78 . 16 Average Temperature 17 | . 12 39 . 7 Received Heat Transfer 309 | . 189 . . 120 Siege Activations . | . . . . . Robots Corrupted . | . . . . . Combat Hostiles . | . . . . . Parts Fried . | . . . . . Impact Corruptions . | . . . . . Robots Melted . | . . . . . Combat Hostiles . | . . . . . Parts Melted . | . . . . . Heat Transferred 200 | . 100 100 . . Parts Sabotaged . | . . . . . Parts Stolen . | . . . . . Parts Stripped . | . . . . . Power Chain Reactions . | . . . . . Alert | -11 -10 -10 -10 -9 ------- Run | Yrd Mat Min Exi Min Peak Influence 212 | 15 212 123 . 93 Initial 53 | . 9 53 . . Average 63 | 6 101 40 . 66 Maximum Alert Level 1 | . 1 . . . Low Security (%) 96 | 100 92 100 . 100 Level 1 3 | . 7 . . . Level 2 . | . . . . . Level 3 . | . . . . . Level 4 . | . . . . . Level 5 . | . . . . . High Security . | . . . . . Max Security . | . . . . . Squads Dispatched 1 | . 1 . . . Investigation 1 | . 1 . . . Extermination . | . . . . . Reinforcement . | . . . . . Assault . | . . . . . Garrison . | . . . . . Intercept . | . . . . . Searches Triggered . | . . . . . Construction Impeded . | . . . . . Haulers Reinforced . | . . . . . Active Scanning Responses . | . . . . . Cargo Convoy Interrupts . | . . . . . Stealth | -11 -10 -10 -10 -9 --------- Run | Yrd Mat Min Exi Min Distress Signals . | . . . . . Communications Jammed . | . . . . . Distress Signals . | . . . . . Times Spotted 33 | . 12 4 . 17 Peak Tracking Total 20 | . 3 3 . 20 Tactical Retreats 1 | . . . . 1 Traps | -11 -10 -10 -10 -9 ------- Run | Yrd Mat Min Exi Min Traps Triggered 1 | . 1 . . . Indirectly . | . . . . . Trap Hack Attempts . | . . . . . Triggered . | . . . . . Disarmed . | . . . . . Reprogrammed . | . . . . . Reused . | . . . . . Traps Extracted . | . . . . . Installed . | . . . . . Triggered . | . . . . . Machines | -11 -10 -10 -10 -9 ---------- Run | Yrd Mat Min Exi Min Machines Disabled 1 | . . 1 . . Max in Single Turn 1 | . . 1 . . Machines Repaired . | . . . . . Machines Dismantled . | . . . . . Machines Sabotaged . | . . . . . Overloaded Fab Kills . | . . . . . Hacking | -11 -10 -10 -10 -9 --------- Run | Yrd Mat Min Exi Min Machines Accessed 4 | . 3 . 1 . Terminals 3 | . 3 . . . Fabricators . | . . . . . Repair Stations . | . . . . . Recycling Units . | . . . . . Scanalyzers . | . . . . . Garrison Access . | . . . . . Total Hacks 5 | . 4 . 1 . Successful 3 | . 2 . 1 . Failed 2 | . 2 . . . Catastrophic . | . . . . . Database Lockouts . | . . . . . Manual 4 | . 3 . 1 . Terminals 4 | . 4 . . . Fabricators . | . . . . . Repair Stations . | . . . . . Recycling Units . | . . . . . Scanalyzers . | . . . . . Garrison Access . | . . . . . Terminal Hacks 3 | . 2 . 1 . Zone Layout 2 | . 2 . . . Derelict Proto ID Bank 1 | . . . 1 . Fabricator Hacks . | . . . . . Repair Station Hacks . | . . . . . Recycling Unit Hacks . | . . . . . Scanalyzer . | . . . . . Garrison Access Hacks . | . . . . . Unauthorized Hacks . | . . . . . Terminals . | . . . . . Fabricators . | . . . . . Repair Stations . | . . . . . Recycling Units . | . . . . . Scanalyzers . | . . . . . Garrison Access . | . . . . . Data Cores Recovered . | . . . . . Used . | . . . . . Hacking Detections 2 | . 2 . . . Full Trace Events . | . . . . . Feedback Events . | . . . . . Feedback Blocked . | . . . . . Robot Schematics Acquired . | . . . . . Robots Built . | . . . . . Authchips . | . . . . . Time . | . . . . . Total Robot Build Rating . | . . . . . Part Schematics Acquired . | . . . . . Parts Built . | . . . . . Authchips . | . . . . . Time . | . . . . . Total Part Build Rating . | . . . . . Parts Repaired . | . . . . . Time . | . . . . . Parts Recycled . | . . . . . Recycled Matter . | . . . . . Retrieved Matter . | . . . . . Retrieved Components . | . . . . . Parts Scanalyzed . | . . . . . Part Schematics Acquired . | . . . . . Parts Damaged . | . . . . . Bothacking | -11 -10 -10 -10 -9 ------------ Run | Yrd Mat Min Exi Min Used RIF Installer . | . . . . . Robots Hacked 1 | . . . 1 . Non-combat 1 | . . . 1 . Combat . | . . . . . Robot Hacks Applied 2 | . . . 2 . parse_system 2 | . . . 2 . Relay Couplers Released . | . . . . . Fabnet Peak Effective % . | . . . . . Robots Rewired . | . . . . . Allies Hacked . | . . . . . Hacks Repelled . | . . . . . Allies | -11 -10 -10 -10 -9 -------- Run | Yrd Mat Min Exi Min Total Allies . | . . . . . Largest Group . | . . . . . Highest-Rated Group . | . . . . . Highest-Rated Ally . | . . . . . Total Orders . | . . . . . Ally Attacks . | . . . . . Total Damage . | . . . . . Kills . | . . . . . Allies Corrupted . | . . . . . Allies Melted . | . . . . . Intel | -11 -10 -10 -10 -9 ------- Run | Yrd Mat Min Exi Min Robot Analysis Total . | . . . . . Derelict Logs Recovered 1 | . . 1 . . Drone Launches . | . . . . . Drone Recoveries . | . . . . . Exploration | -11 -10 -10 -10 -9 ------------- Run | Yrd Mat Min Exi Min Turns Passed 2354 | 117 766 994 402 75 Spaces Moved 1286 | 54 363 596 247 26 Core 9 | 7 . . . 2 Treads 1277 | 47 363 596 247 24 Legs . | . . . . . Wheels . | . . . . . Hover . | . . . . . Flight . | . . . . . Fastest Speed 50 | 50 160 160 160 160 Average Speed 160 | 145 160 160 160 225 Slowest Speed 400 | 160 160 160 160 400 Overloaded Moves . | . . . . . Propulsion Burnouts . | . . . . . Robots Hopped . | . . . . . Cave-ins Triggered . | . . . . . Exploration Rate (%) 42 | 4 43 89 61 15 Regions Visited 4 Branch Regions 3 Pre-discovered Areas . | . . . . . Known Exits Taken . | . . . . . Unknown Exits Taken 4 | 1 1 1 1 . Scrap Searched 2 | . . 2 . . Spaces Dug . | . . . . . Terrain Destroyed 65 | . . 20 . 45 Melee . | . . . . . Projectile . | . . . . . AOE 65 | . . 20 . 45 Terrain Rammed . | . . . . . Walls Destroyed . | . . . . . Machines Disabled . | . . . . . Actions | -11 -10 -10 -10 -9 --------- Run | Yrd Mat Min Exi Min Total 1440 | 75 457 620 254 34 Wait 34 | . 22 12 . . Move 1282 | 53 362 595 246 26 Hop . | . . . . . Pick Up 18 | 6 10 1 1 . Fast Attach 7 | 7 . . . . Attach 1 | . . . . 1 Detach . | . . . . . Swap 8 | . 4 2 1 1 Drop 8 | . 3 1 4 . Fire 80 | 9 56 9 . 6 Melee 2 | . . . 2 . Ram . | . . . . . Kick . | . . . . . Crush . | . . . . . Escape Stasis . | . . . . . Rewire . | . . . . . Trap . | . . . . . Miscellaneous . | . . . . . Route ------- -11/Scrapyard -10/Materials (discovered 3 exits: [*Mat] / [*Min] / [*Sub]) -10/Mines (discovered 2 exits: [*Mat] / *Exi) -10/Exiles -9/Mines History --------- Turn | Location | Event 2 | -11/Scrapyard | Met Revision 17 11 | -11/Scrapyard | Discovered new exit (range 14) 118 | -11/Scrapyard | Entered Materials 313 | -10/Materials | Build established: Mutant 488 | -10/Materials | Discovered new exit (range 13) 598 | -10/Materials | Discovered new exit (range 15) 798 | -10/Materials | Discovered new exit (range 6) 884 | -10/Materials | Entered Mines 1178 | -10/Mines | Discovered new exit (range 13) 1505 | -10/Mines | Learned Materials emergency access door positions 1531 | -10/Mines | Received a Rocket Launcher from a helpful Derelict 1814 | -10/Mines | Deemed a non-threat by the Exiles lab entrance 1814 | -10/Mines | Discovered new exit (range 6) 1843 | -10/Mines | A weapon hastily lodged in a ceiling crevice suddenly fell to the ground 1878 | -10/Mines | Entered Exiles 1922 | -10/Exiles | Met 8R-AWN 1947 | -10/Exiles | Met EX-HEX 2000 | -10/Exiles | Met EX-BIN 2022 | -10/Exiles | Aligned with FarCom system 2024 | -10/Exiles | Given EX-Vault access code 2074 | -10/Exiles | Opened EX-Vault 2087 | -10/Exiles | Found Flying Fortress v7 2125 | -10/Exiles | Warned to stay clear of 0b10 Research branches 2145 | -10/Exiles | Exiles lab attacked by MAIN.C 2259 | -10/Exiles | Discovered new exit (range 14) 2280 | -10/Exiles | Left Exiles lab with Flying Fortress v7 2280 | -10/Exiles | Entered Mines 2295 | -9/Mines | Core integrity fell below 50% 2335 | -9/Mines | Assembled infested the area 2354 | -9/Mines | Core integrity fell below 20% 2355 | -9/Mines | Destroyed by as-97449 with Assembled Blade Last Messages --------------- we got split up from the others." 5L-KAT destroyed. Lgt. Treads destroyed. Destroyed Lgt. Treads. S-10 Pest destroyed. Lgt. Nuclear Core destroyed. Destroyed Lgt. Nuclear Core. S-10 Pest destroyed. The unstable cave ceiling collapses. ALERT: Infestation in the mines, dispatching Demolisher response squad. Rocket Launcher destroyed. The unstable cave ceiling collapses. [Achievement: Hunted] T-07 Excavator destroyed. Lgt. Treads destroyed. Lgt. Assault Rifle destroyed. System corrupted by crushing effect (+1). Structural Scanner destroyed. System corrupted by crushing effect (+3). Map ----- +----------------------------------------------------+ | ???????####???????????????????????? | | ???????### ???????????????????????? | | ??????### ???????????????????????? | | ??????### ???????????????????????? | | ??????## ???????????????????????? | | ??????## ##?????????????????????? | | ??????## ##?????????????????????? | | ???????## ?????????????????????? | | ???????## ??????????????????????? | | ???????## ###???????????????????? | | ???????## ####??????????????????? | | ?######## ####?????????????????? | | ?######## ######??????????????? | | ### ####??????????????? | | ## ####???????????? | | # #### #####??????????? | | ??##### [* ####?????????? | | ???????## ### g #######?????? | | ???????## ###### ######?????? | | ??????? ???### =*gg ##?????? | | ?????? ????## ### ##?????? | | ????? ????## ### ##?????? | | ???? ###????#### ##### ###????? | | ??? ####????######### t ###????? | | ?? ##????????###### ##????? | | ?? ??????????????## @ ##????? | | ??? ??????????????### aa ##????? | | ??????????????????### a ###????? | | ??????????????????##a a ####????? | | ???????????## a a ####?????? | | ??????????### a ###??????? | | ????????#### a aa ##???????? | | ????????## | ##???????? | | ????????# !%! ##???????? | | ???????? * # #???????? | | ????????## aa## # ????????? | | ????????### ###### ???????? | | ?????????## ####### ???????? | | ?????????## ##???### ??????? | | ??????????? ???????#### ??????? | | ????????????????????#### ?????? | | ??????????????????????### ?????? | | ???????????????????????## ???????? | | ??????????????????????????????????? | | ??????????????????????????????????? | | ??????????????????????????????????? | | ??????????????????????????????????? | | ??????????????????????????????????? | | ??????????????????????????????????? | | ??????????????????????????????????? | +----------------------------------------------------+ Best States ------------- Heat Dissipation 25 Energy Generation 14 Energy Capacity 250 Matter Stores 300 Matter Capacity 300 Sight Range 16 Terrain Scan Range 16 Terrain Scan Density 10 Evasion (%) 40 Recoil Reduction 2 Item Schematics ----------------- None Robot Schematics ------------------ None Fabricated ------------ Nothing Alien Tech Used ----------------- None Achievements -------------- Dramatic Entrance Hunted Challenges ------------ None Game ------ Seed PortableTrackerStripper Manual? 0 Play Time 00:23:29 Cumulative 22.4 hours Start 2024.04.12 @ 18:09:20 End 2024.04.12 @ 18:32:08 Sessions 1 Manual Loads 0 Difficulty Rogue Special Mode None Game No. 17 Rogue 17 Adventurer 0 Explorer 0 Win Type - Total 0 Types 0/0/0/0/0/0/0/0/0 Lore% 18 Gallery% 25 Achievement% 17 Wizard Run 0 Options --------- Layout 1 ASCII 0 Keyboard 0 Movement Mouse Keybinds 0 Fullscreen 1 Font 24/Smallcaps Map View 50x35 Zoom Use 0% Tactical HUD 0 Map Filters NONE Filters NONE Steam 1 RUN: 2ab37881-987c-4d75-b02e-a3e8ed395f46